[Event "Early-Titled-Tuesday-Blitz-October-24-2023"]
[Site "Chess.com"]
[Date "2023.10.24"]
[Round "4"]
[White "leejunhyeok"]
[Black "venturov"]
[Result "1-0"]
[WhiteElo "2666"]
[BlackElo "2481"]
[TimeControl "180+1"]
[EndTime "8:38:06 PDT"]
[Termination "leejunhyeok won by resignation"]

1. d4 {[%clk 0:02:58.2]} 1... Nf6 {[%clk 0:03:00]} 2. c4 {[%clk 0:02:55.4]} 2...
e6 {[%clk 0:03:00.3]} 3. Nf3 {[%clk 0:02:55.3]} 3... b6 {[%clk 0:03:00.4]} 4. g3
{[%clk 0:02:53.5]} 4... Bb7 {[%clk 0:03:00.9]} 5. Bg2 {[%clk 0:02:53.6]} 5...
Be7 {[%clk 0:03:01.5]} 6. O-O {[%clk 0:02:53.7]} 6... O-O {[%clk 0:03:02.2]} 7.
Re1 {[%clk 0:02:54.2]} 7... Ne4 {[%clk 0:03:02.3]} 8. Nfd2 {[%clk 0:02:53.8]}
8... d5 {[%clk 0:03:02.4]} 9. cxd5 {[%clk 0:02:50.1]} 9... exd5 {[%clk
0:03:02.4]} 10. Nxe4 {[%clk 0:02:50.3]} 10... dxe4 {[%clk 0:03:01.2]} 11. Nc3
{[%clk 0:02:50.9]} 11... f5 {[%clk 0:02:57.9]} 12. Bf4 {[%clk 0:02:50.9]} 12...
Nc6 {[%clk 0:02:55.5]} 13. Qb3+ {[%clk 0:02:21.3]} 13... Kh8 {[%clk 0:02:53.6]}
14. Rad1 {[%clk 0:02:20.9]} 14... Bd6 {[%clk 0:02:50.2]} 15. Bxd6 {[%clk
0:02:06.8]} 15... cxd6 {[%clk 0:02:50.5]} 16. e3 {[%clk 0:02:04]} 16... Ne7
{[%clk 0:02:49.3]} 17. Rc1 {[%clk 0:02:01.5]} 17... Qd7 {[%clk 0:02:44.7]} 18.
Bf1 {[%clk 0:02:00.5]} 18... Rac8 {[%clk 0:02:36.9]} 19. Qa3 {[%clk 0:01:53.1]}
19... Bc6 {[%clk 0:02:24.2]} 20. Ba6 {[%clk 0:01:42.5]} 20... Rc7 {[%clk
0:02:22]} 21. Rc2 {[%clk 0:01:33.4]} 21... Ba8 {[%clk 0:01:28.9]} 22. Rec1
{[%clk 0:01:22.8]} 22... h6 {[%clk 0:01:05.6]} 23. Nb5 {[%clk 0:01:18.1]} 23...
Rxc2 {[%clk 0:01:01.1]} 24. Rxc2 {[%clk 0:01:19]} 24... Bc6 {[%clk 0:00:31.9]}
25. Nxd6 {[%clk 0:00:58.8]} 25... f4 {[%clk 0:00:32]} 26. Nc4 {[%clk 0:00:48]}
26... fxg3 {[%clk 0:00:24.4]} 27. hxg3 {[%clk 0:00:46.4]} 27... Ng6 {[%clk
0:00:20]} 28. Ne5 {[%clk 0:00:45.2]} 28... Nxe5 {[%clk 0:00:18.6]} 29. Qxf8+
{[%clk 0:00:44.4]} 29... Kh7 {[%clk 0:00:19]} 30. Bc8 {[%clk 0:00:23.5]} 30...
Nf3+ {[%clk 0:00:10.4]} 31. Kh1 {[%clk 0:00:16.9]} 31... Qd5 {[%clk 0:00:02.4]}
32. Qf5+ {[%clk 0:00:16.1]} 32... g6 {[%clk 0:00:03.1]} 33. Qxd5 {[%clk
0:00:14]} 33... Bxd5 {[%clk 0:00:04]} 34. Rc7+ {[%clk 0:00:13.5]} 34... Kg8
{[%clk 0:00:04.4]} 35. Bb7 {[%clk 0:00:13.7]} 35... Bxa2 {[%clk 0:00:02.8]} 36.
Bxe4 {[%clk 0:00:12.8]} 36... Ng5 {[%clk 0:00:03.4]} 37. Bxg6 {[%clk 0:00:12.5]}
37... Kf8 {[%clk 0:00:03.6]} 38. f4 {[%clk 0:00:11.3]} 38... Nh3 {[%clk
0:00:04]} 39. Kg2 {[%clk 0:00:10.9]} 39... Nxf4+ {[%clk 0:00:02.8]} 40. gxf4
{[%clk 0:00:11]} 40... Bb1 {[%clk 0:00:03.1]} 41. Bxb1 {[%clk 0:00:10.3]} 41...
h5 {[%clk 0:00:04]} 42. Bg6 {[%clk 0:00:10.3]} 42... h4 {[%clk 0:00:04.9]} 43.
Rf7+ {[%clk 0:00:09.8]} 43... Kg8 {[%clk 0:00:04.6]} 44. d5 {[%clk 0:00:10]}
44... b5 {[%clk 0:00:05.5]} 45. d6 {[%clk 0:00:10.5]} 45... b4 {[%clk
0:00:06.4]} 46. d7 {[%clk 0:00:10.9]} 1-0

[Event "Early-Titled-Tuesday-Blitz-October-24-2023"]
[Site "Chess.com"]
[Date "2023.10.24"]
[Round "4"]
[White "shimastream"]
[Black "temiksmozg"]
[Result "1-0"]
[WhiteElo "2978"]
[BlackElo "2581"]
[TimeControl "180+1"]
[EndTime "8:38:08 PDT"]
[Termination "shimastream won on time"]

1. Nf3 {[%clk 0:03:00.9]} 1... d5 {[%clk 0:02:55]} 2. c4 {[%clk 0:03:00.5]} 2...
c6 {[%clk 0:02:55]} 3. g3 {[%clk 0:02:59.5]} 3... dxc4 {[%clk 0:02:54.8]} 4. Bg2
{[%clk 0:02:58.6]} 4... b5 {[%clk 0:02:55.4]} 5. O-O {[%clk 0:02:57.7]} 5... Bb7
{[%clk 0:02:55.8]} 6. a4 {[%clk 0:02:55.1]} 6... a6 {[%clk 0:02:54.9]} 7. b3
{[%clk 0:02:53.7]} 7... cxb3 {[%clk 0:02:54.7]} 8. Qxb3 {[%clk 0:02:54.6]} 8...
e6 {[%clk 0:02:54]} 9. d4 {[%clk 0:02:53.9]} 9... Nd7 {[%clk 0:02:48.1]} 10. Bb2
{[%clk 0:02:42.4]} 10... Ngf6 {[%clk 0:02:46.4]} 11. Nbd2 {[%clk 0:02:42.5]}
11... Be7 {[%clk 0:02:42.4]} 12. Rfc1 {[%clk 0:02:16.2]} 12... O-O {[%clk
0:02:35.1]} 13. Ne1 {[%clk 0:02:10.1]} 13... Nc5 {[%clk 0:01:20.7]} 14. dxc5
{[%clk 0:01:43]} 14... Qxd2 {[%clk 0:01:19.6]} 15. Nd3 {[%clk 0:01:24.8]} 15...
Qxe2 {[%clk 0:01:09.2]} 16. Ne5 {[%clk 0:01:24.9]} 16... Qh5 {[%clk 0:00:50.8]}
17. h3 {[%clk 0:00:46.7]} 17... Nd5 {[%clk 0:00:42]} 18. f4 {[%clk 0:00:42.6]}
18... f6 {[%clk 0:00:33.5]} 19. Nf3 {[%clk 0:00:40.2]} 19... Qf7 {[%clk
0:00:30.7]} 20. Kh2 {[%clk 0:00:38.9]} 20... Rfe8 {[%clk 0:00:29.2]} 21. Nd4
{[%clk 0:00:37.5]} 21... Bf8 {[%clk 0:00:27.4]} 22. Nf3 {[%clk 0:00:21.2]} 22...
b4 {[%clk 0:00:16.2]} 23. a5 {[%clk 0:00:20.2]} 23... Rab8 {[%clk 0:00:15.1]}
24. Qc4 {[%clk 0:00:19.7]} 24... Rbd8 {[%clk 0:00:07.4]} 25. Re1 {[%clk
0:00:19.4]} 25... Qe7 {[%clk 0:00:05.8]} 26. Re2 {[%clk 0:00:18.6]} 26... Qxc5
{[%clk 0:00:05.8]} 27. Qb3 {[%clk 0:00:18.7]} 27... Qd6 {[%clk 0:00:04.8]} 28.
Rae1 {[%clk 0:00:18.8]} 28... c5 {[%clk 0:00:05.2]} 29. Nd2 {[%clk 0:00:19]}
29... Qd7 {[%clk 0:00:02.8]} 30. Nc4 {[%clk 0:00:19.1]} 30... Bc6 {[%clk
0:00:03.2]} 31. f5 {[%clk 0:00:18.9]} 31... exf5 {[%clk 0:00:02.2]} 32. Rxe8
{[%clk 0:00:19.1]} 32... Rxe8 {[%clk 0:00:03.1]} 33. Rxe8 {[%clk 0:00:18.9]}
33... Qxe8 {[%clk 0:00:04]} 34. Ne3 {[%clk 0:00:19.2]} 34... Qxe3 {[%clk
0:00:03]} 35. Bxd5+ {[%clk 0:00:19.3]} 35... Bxd5 {[%clk 0:00:03.3]} 36. Qxe3
{[%clk 0:00:19.4]} 36... c4 {[%clk 0:00:04.2]} 37. Qb6 {[%clk 0:00:13.5]} 37...
c3 {[%clk 0:00:03]} 38. Bc1 {[%clk 0:00:13.6]} 38... b3 {[%clk 0:00:03.1]} 39.
Qd4 {[%clk 0:00:08]} 39... b2 {[%clk 0:00:01.7]} 40. Qxd5+ {[%clk 0:00:07.4]}
40... Kh8 {[%clk 0:00:01.6]} 41. Bxb2 {[%clk 0:00:07]} 41... cxb2 {[%clk
0:00:02.5]} 42. Qb3 {[%clk 0:00:07.5]} 1-0

[Event "Early-Titled-Tuesday-Blitz-October-24-2023"]
[Site "Chess.com"]
[Date "2023.10.24"]
[Round "4"]
[White "publicaccountcze"]
[Black "MaxLeto"]
[Result "0-1"]
[WhiteElo "2337"]
[BlackElo "2557"]
[TimeControl "180+1"]
[EndTime "8:38:08 PDT"]
[Termination "MaxLeto won on time"]

1. e4 {[%clk 0:03:00.9]} 1... c5 {[%clk 0:03:00.4]} 2. Nc3 {[%clk 0:03:00.3]}
2... Nc6 {[%clk 0:02:59.9]} 3. f4 {[%clk 0:03:00.3]} 3... d6 {[%clk 0:03:00.1]}
4. Nf3 {[%clk 0:03:00.4]} 4... g6 {[%clk 0:03:00.3]} 5. g3 {[%clk 0:03:00.6]}
5... Bg7 {[%clk 0:03:00.7]} 6. Bg2 {[%clk 0:03:00.9]} 6... e6 {[%clk 0:02:57.3]}
7. O-O {[%clk 0:03:00.7]} 7... Nge7 {[%clk 0:02:58]} 8. d3 {[%clk 0:03:01]} 8...
Nd4 {[%clk 0:02:53.1]} 9. Ne2 {[%clk 0:02:45.3]} 9... Nec6 {[%clk 0:02:49.3]}
10. c3 {[%clk 0:02:45.4]} 10... Nxf3+ {[%clk 0:02:48.9]} 11. Bxf3 {[%clk
0:02:45.4]} 11... O-O {[%clk 0:02:43.4]} 12. Be3 {[%clk 0:02:38.5]} 12... b6
{[%clk 0:02:40.1]} 13. Bg2 {[%clk 0:02:21.7]} 13... Bb7 {[%clk 0:02:30.8]} 14.
g4 {[%clk 0:02:21.7]} 14... d5 {[%clk 0:02:07.9]} 15. d4 {[%clk 0:01:07.5]}
15... cxd4 {[%clk 0:01:56.3]} 16. Nxd4 {[%clk 0:01:03.7]} 16... Nxd4 {[%clk
0:01:53.1]} 17. Bxd4 {[%clk 0:01:03.2]} 17... dxe4 {[%clk 0:01:45.2]} 18. f5
{[%clk 0:00:16]} 18... exf5 {[%clk 0:01:28]} 19. gxf5 {[%clk 0:00:15.7]} 19...
Bxd4+ {[%clk 0:01:19.1]} 20. Qxd4 {[%clk 0:00:15.4]} 20... Qxd4+ {[%clk
0:01:16.1]} 21. cxd4 {[%clk 0:00:16.3]} 21... Rad8 {[%clk 0:01:14.8]} 22. Rad1
{[%clk 0:00:16.7]} 22... Rd6 {[%clk 0:01:11.5]} 23. Rf4 {[%clk 0:00:15.6]} 23...
Re8 {[%clk 0:01:06.9]} 24. fxg6 {[%clk 0:00:14.2]} 24... hxg6 {[%clk 0:01:06.6]}
25. Kf2 {[%clk 0:00:06.8]} 25... f5 {[%clk 0:00:48.5]} 26. Ke3 {[%clk
0:00:06.9]} 26... Kg7 {[%clk 0:00:40.9]} 27. h4 {[%clk 0:00:07.1]} 27... Kf6
{[%clk 0:00:36]} 28. Rdf1 {[%clk 0:00:04.6]} 28... Red8 {[%clk 0:00:08.3]} 29.
Rd1 {[%clk 0:00:04.2]} 29... Ke6 {[%clk 0:00:04.5]} 30. Bh3 {[%clk 0:00:04]}
30... Bd5 {[%clk 0:00:03.3]} 31. h5 {[%clk 0:00:04.1]} 31... Kf6 {[%clk
0:00:02.4]} 32. hxg6 {[%clk 0:00:04.2]} 32... Be6 {[%clk 0:00:03]} 33. g7 {[%clk
0:00:03.9]} 33... Kxg7 {[%clk 0:00:03.2]} 34. Rg1+ {[%clk 0:00:04.5]} 34... Kf6
{[%clk 0:00:03.3]} 35. Rd1 {[%clk 0:00:04.8]} 35... Rh8 {[%clk 0:00:03.3]} 36.
Bg2 {[%clk 0:00:03.6]} 36... Rg8 {[%clk 0:00:03.6]} 37. Rd2 {[%clk 0:00:03.9]}
37... Rg3+ {[%clk 0:00:03.7]} 38. Ke2 {[%clk 0:00:03.3]} 38... Rc6 {[%clk
0:00:03.1]} 39. b3 {[%clk 0:00:03.1]} 39... Rcc3 {[%clk 0:00:03.1]} 40. Kd1
{[%clk 0:00:02.5]} 40... Bd5 {[%clk 0:00:02.8]} 0-1

[Event "Early-Titled-Tuesday-Blitz-October-24-2023"]
[Site "Chess.com"]
[Date "2023.10.24"]
[Round "4"]
[White "Balla_Tamas"]
[Black "LeoLV10"]
[Result "0-1"]
[WhiteElo "2364"]
[BlackElo "2579"]
[TimeControl "180+1"]
[EndTime "8:38:09 PDT"]
[Termination "LeoLV10 won by resignation"]

1. e4 {[%clk 0:02:58.3]} 1... c5 {[%clk 0:02:57]} 2. Nf3 {[%clk 0:02:58]} 2...
e6 {[%clk 0:02:53.2]} 3. d4 {[%clk 0:02:58]} 3... cxd4 {[%clk 0:02:54.1]} 4.
Nxd4 {[%clk 0:02:58.7]} 4... a6 {[%clk 0:02:55]} 5. c4 {[%clk 0:02:54.6]} 5...
Nf6 {[%clk 0:02:52.2]} 6. Nc3 {[%clk 0:02:54.5]} 6... Qc7 {[%clk 0:02:50.6]} 7.
a3 {[%clk 0:02:50.4]} 7... b6 {[%clk 0:02:50.9]} 8. f3 {[%clk 0:02:50.2]} 8...
Bb7 {[%clk 0:02:51.4]} 9. Be3 {[%clk 0:02:50.7]} 9... Nc6 {[%clk 0:02:50.5]} 10.
Be2 {[%clk 0:02:49.1]} 10... h6 {[%clk 0:02:46.1]} 11. O-O {[%clk 0:02:48.9]}
11... Ne5 {[%clk 0:02:43]} 12. Rc1 {[%clk 0:02:35.6]} 12... h5 {[%clk
0:02:34.2]} 13. Qd2 {[%clk 0:02:28.5]} 13... d6 {[%clk 0:02:33.3]} 14. b4 {[%clk
0:01:55.2]} 14... Be7 {[%clk 0:02:29.7]} 15. Kh1 {[%clk 0:01:54.7]} 15... h4
{[%clk 0:02:25.5]} 16. Nd5 {[%clk 0:01:39.8]} 16... exd5 {[%clk 0:02:20.5]} 17.
cxd5 {[%clk 0:01:40.7]} 17... Qd8 {[%clk 0:02:11]} 18. Nf5 {[%clk 0:01:33.9]}
18... Bf8 {[%clk 0:01:43.9]} 19. f4 {[%clk 0:01:25.1]} 19... Neg4 {[%clk
0:01:41.6]} 20. Bxg4 {[%clk 0:01:23]} 20... Nxg4 {[%clk 0:01:41.4]} 21. e5
{[%clk 0:01:15.1]} 21... dxe5 {[%clk 0:01:34.6]} 22. fxe5 {[%clk 0:01:11.6]}
22... Qxd5 {[%clk 0:01:34.3]} 23. Qe2 {[%clk 0:01:05.6]} 23... h3 {[%clk
0:01:27.9]} 24. Rfd1 {[%clk 0:01:05.2]} 24... Qxg2+ {[%clk 0:01:25.6]} 25. Qxg2
{[%clk 0:01:05.6]} 25... hxg2+ {[%clk 0:01:26.5]} 26. Kg1 {[%clk 0:01:06.2]}
26... Nxe3 {[%clk 0:01:26.8]} 27. Nxe3 {[%clk 0:01:02.3]} 27... Bf3 {[%clk
0:01:16.1]} 28. Rd3 {[%clk 0:00:57.6]} 28... Rd8 {[%clk 0:01:15.9]} 29. Rdc3
{[%clk 0:00:52.1]} 29... Be7 {[%clk 0:01:13.7]} 30. Nf5 {[%clk 0:00:52.5]} 30...
Be4 {[%clk 0:01:10.7]} 31. Nxg7+ {[%clk 0:00:40]} 31... Kf8 {[%clk 0:01:10.7]}
32. Re3 {[%clk 0:00:39.7]} 32... Bg6 {[%clk 0:01:07.4]} 33. Rc7 {[%clk
0:00:38.5]} 33... Bg5 {[%clk 0:01:02.6]} 34. Rg3 {[%clk 0:00:37.3]} 34... Kxg7
{[%clk 0:00:52.6]} 35. Rxg5 {[%clk 0:00:35.3]} 35... Rd1+ {[%clk 0:00:51.5]} 36.
Kxg2 {[%clk 0:00:35.3]} 36... Rd2+ {[%clk 0:00:52.4]} 37. Kg1 {[%clk 0:00:31.1]}
37... Re2 {[%clk 0:00:45.3]} 38. Rc6 {[%clk 0:00:28.1]} 38... Rb8 {[%clk
0:00:37.4]} 39. h4 {[%clk 0:00:25.4]} 39... Kf8 {[%clk 0:00:34.4]} 40. h5 {[%clk
0:00:24.7]} 40... Be4 {[%clk 0:00:34.3]} 41. Rf6 {[%clk 0:00:20.3]} 41... Ke7
{[%clk 0:00:33.4]} 42. h6 {[%clk 0:00:20.5]} 42... Re1+ {[%clk 0:00:30.4]} 43.
Kf2 {[%clk 0:00:20.6]} 43... Rh1 {[%clk 0:00:31]} 44. Rg7 {[%clk 0:00:20.8]}
44... Bd5 {[%clk 0:00:29.2]} 45. h7 {[%clk 0:00:20.5]} 45... Rh8 {[%clk
0:00:29.1]} 46. Rd6 {[%clk 0:00:18.4]} 46... Be6 {[%clk 0:00:28.4]} 47. Rxb6
{[%clk 0:00:18]} 47... R1xh7 {[%clk 0:00:16.1]} 48. Rxh7 {[%clk 0:00:18.2]}
48... Rxh7 {[%clk 0:00:17]} 49. Rxa6 {[%clk 0:00:18.8]} 49... Rh3 {[%clk
0:00:17.5]} 50. b5 {[%clk 0:00:17.9]} 50... Bc4 {[%clk 0:00:16.5]} 51. Ra5
{[%clk 0:00:17.2]} 51... Rb3 {[%clk 0:00:16]} 52. a4 {[%clk 0:00:17.3]} 52...
Ke6 {[%clk 0:00:16.5]} 53. Ra7 {[%clk 0:00:16.8]} 53... Kxe5 {[%clk 0:00:16.2]}
54. Rxf7 {[%clk 0:00:16.5]} 54... Bxf7 {[%clk 0:00:16]} 0-1

[Event "Early-Titled-Tuesday-Blitz-October-24-2023"]
[Site "Chess.com"]
[Date "2023.10.24"]
[Round "4"]
[White "Zhbugnoimt"]
[Black "salomez"]
[Result "1-0"]
[WhiteElo "2567"]
[BlackElo "2362"]
[TimeControl "180+1"]
[EndTime "8:38:09 PDT"]
[Termination "Zhbugnoimt won on time"]

1. e4 {[%clk 0:03:00.9]} 1... c5 {[%clk 0:02:59.7]} 2. Nf3 {[%clk 0:03:00.9]}
2... Nc6 {[%clk 0:02:58.2]} 3. Bb5 {[%clk 0:02:59.7]} 3... e6 {[%clk 0:02:56.3]}
4. O-O {[%clk 0:02:59.5]} 4... Nge7 {[%clk 0:02:53.6]} 5. Re1 {[%clk 0:02:59.8]}
5... a6 {[%clk 0:02:53.6]} 6. Bf1 {[%clk 0:03:00]} 6... d5 {[%clk 0:02:53.7]} 7.
exd5 {[%clk 0:03:00.9]} 7... Nxd5 {[%clk 0:02:53.5]} 8. d4 {[%clk 0:03:01.3]}
8... Nf6 {[%clk 0:02:46.1]} 9. Be3 {[%clk 0:02:58.5]} 9... cxd4 {[%clk
0:02:45.4]} 10. Nxd4 {[%clk 0:02:59.4]} 10... Bd7 {[%clk 0:02:45.5]} 11. c4
{[%clk 0:02:59.3]} 11... Be7 {[%clk 0:02:45.4]} 12. Nc3 {[%clk 0:02:59.7]} 12...
O-O {[%clk 0:02:44.1]} 13. h3 {[%clk 0:02:49.2]} 13... Qc7 {[%clk 0:02:43.6]}
14. Rc1 {[%clk 0:02:47.6]} 14... Rfd8 {[%clk 0:02:42.7]} 15. Qf3 {[%clk
0:02:36.9]} 15... Rac8 {[%clk 0:02:29.2]} 16. Nxc6 {[%clk 0:02:01.6]} 16... Bxc6
{[%clk 0:02:28.5]} 17. Qe2 {[%clk 0:01:45.9]} 17... Ne4 {[%clk 0:01:44.9]} 18.
Nxe4 {[%clk 0:01:41]} 18... Bxe4 {[%clk 0:01:44.6]} 19. Red1 {[%clk 0:01:34.3]}
19... Bg6 {[%clk 0:01:39]} 20. g3 {[%clk 0:01:29.5]} 20... Rxd1 {[%clk
0:01:37.4]} 21. Rxd1 {[%clk 0:01:29.5]} 21... Bc5 {[%clk 0:01:34.4]} 22. b3
{[%clk 0:01:22.1]} 22... h6 {[%clk 0:01:32]} 23. Bg2 {[%clk 0:01:22.3]} 23... b6
{[%clk 0:01:16.9]} 24. Bf4 {[%clk 0:01:10.6]} 24... Qe7 {[%clk 0:01:10]} 25. h4
{[%clk 0:00:56.6]} 25... Rd8 {[%clk 0:00:47.2]} 26. Rxd8+ {[%clk 0:00:48.6]}
26... Qxd8 {[%clk 0:00:46.8]} 27. h5 {[%clk 0:00:41.4]} 27... Qd3 {[%clk
0:00:28]} 28. Qe5 {[%clk 0:00:12.9]} 28... Bf5 {[%clk 0:00:20.7]} 29. Be3 {[%clk
0:00:09.9]} 29... Qd1+ {[%clk 0:00:19.4]} 30. Kh2 {[%clk 0:00:09.7]} 30... Qxh5+
{[%clk 0:00:17.6]} 31. Kg1 {[%clk 0:00:10.2]} 31... Qd1+ {[%clk 0:00:16.7]} 32.
Kh2 {[%clk 0:00:10.6]} 32... Bxe3 {[%clk 0:00:14.4]} 33. Qxe3 {[%clk 0:00:10.4]}
33... Qd6 {[%clk 0:00:11.4]} 34. Bf3 {[%clk 0:00:10.5]} 34... Bb1 {[%clk
0:00:10.5]} 35. a4 {[%clk 0:00:09.8]} 35... Bc2 {[%clk 0:00:09]} 36. a5 {[%clk
0:00:09.9]} 36... Bf5 {[%clk 0:00:07.5]} 37. c5 {[%clk 0:00:10.8]} 37... Qxc5
{[%clk 0:00:07]} 38. axb6 {[%clk 0:00:10.7]} 38... Qc8 {[%clk 0:00:05.9]} 39. b7
{[%clk 0:00:10.9]} 39... Qb8 {[%clk 0:00:04.7]} 40. Qf4 {[%clk 0:00:11.5]} 40...
e5 {[%clk 0:00:04]} 41. Qxf5 {[%clk 0:00:11.9]} 41... f6 {[%clk 0:00:03.3]} 42.
Qc8+ {[%clk 0:00:12.4]} 1-0

[Event "Early-Titled-Tuesday-Blitz-October-24-2023"]
[Site "Chess.com"]
[Date "2023.10.24"]
[Round "4"]
[White "johnmez"]
[Black "Actuary44"]
[Result "0-1"]
[WhiteElo "2297"]
[BlackElo "2504"]
[TimeControl "180+1"]
[EndTime "8:38:09 PDT"]
[Termination "Actuary44 won by resignation"]

1. d4 {[%clk 0:03:00.9]} 1... Nf6 {[%clk 0:02:59.7]} 2. Bf4 {[%clk 0:02:59.8]}
2... g6 {[%clk 0:03:00]} 3. Nf3 {[%clk 0:02:58.6]} 3... Bg7 {[%clk 0:03:00.6]}
4. e3 {[%clk 0:02:56.2]} 4... d6 {[%clk 0:03:01.2]} 5. h3 {[%clk 0:02:51.2]}
5... O-O {[%clk 0:03:01.2]} 6. Bd3 {[%clk 0:02:48.7]} 6... Nfd7 {[%clk
0:03:01.7]} 7. O-O {[%clk 0:02:46.3]} 7... Nc6 {[%clk 0:03:02.2]} 8. Nbd2 {[%clk
0:02:15.3]} 8... e5 {[%clk 0:03:02.1]} 9. dxe5 {[%clk 0:02:14.7]} 9... Ndxe5
{[%clk 0:03:03]} 10. Nxe5 {[%clk 0:01:51.5]} 10... Nxe5 {[%clk 0:03:03.9]} 11.
Bxe5 {[%clk 0:01:51.9]} 11... Bxe5 {[%clk 0:03:03.5]} 12. c3 {[%clk 0:01:52.1]}
12... Be6 {[%clk 0:03:02.2]} 13. Nf3 {[%clk 0:01:52.4]} 13... Bg7 {[%clk
0:03:01.9]} 14. Nd4 {[%clk 0:01:50.8]} 14... Bd7 {[%clk 0:02:58.2]} 15. Qf3
{[%clk 0:01:48]} 15... Rb8 {[%clk 0:02:55.6]} 16. Rad1 {[%clk 0:01:42.7]} 16...
c5 {[%clk 0:02:54.3]} 17. Nc2 {[%clk 0:01:37.4]} 17... Qe7 {[%clk 0:02:49]} 18.
e4 {[%clk 0:01:29.8]} 18... Bc6 {[%clk 0:02:47]} 19. Ne3 {[%clk 0:01:26.8]}
19... f5 {[%clk 0:02:31.4]} 20. Nd5 {[%clk 0:01:25.9]} 20... Bxd5 {[%clk
0:02:30.5]} 21. exd5 {[%clk 0:01:26.8]} 21... Rbe8 {[%clk 0:02:22.6]} 22. Bb5
{[%clk 0:01:10.6]} 22... Rd8 {[%clk 0:02:19.9]} 23. Rfe1 {[%clk 0:01:07.3]}
23... Qc7 {[%clk 0:02:17]} 24. Qe3 {[%clk 0:01:03.7]} 24... a6 {[%clk
0:02:13.9]} 25. Bf1 {[%clk 0:01:00.3]} 25... Rde8 {[%clk 0:02:08.8]} 26. Qxe8
{[%clk 0:00:59.1]} 26... Rxe8 {[%clk 0:02:09.7]} 27. Rxe8+ {[%clk 0:00:58.5]}
27... Kf7 {[%clk 0:02:05.8]} 28. Rde1 {[%clk 0:00:58.9]} 28... Be5 {[%clk
0:01:56.7]} 29. Re6 {[%clk 0:00:46.9]} 29... f4 {[%clk 0:01:41.5]} 30. Bc4
{[%clk 0:00:39.2]} 30... b5 {[%clk 0:01:40.7]} 31. R6xe5 {[%clk 0:00:25.2]}
31... bxc4 {[%clk 0:01:31.8]} 32. R5e4 {[%clk 0:00:25.3]} 32... g5 {[%clk
0:01:31.3]} 33. Rxc4 {[%clk 0:00:24.6]} 33... Qb7 {[%clk 0:01:28.7]} 34. b3
{[%clk 0:00:23.8]} 34... Qxd5 {[%clk 0:01:28.3]} 35. Rce4 {[%clk 0:00:21.7]}
35... Kf6 {[%clk 0:01:23.5]} 36. Re7 {[%clk 0:00:18.2]} 36... Qd2 {[%clk
0:01:19.9]} 37. R1e6+ {[%clk 0:00:09.8]} 37... Kf5 {[%clk 0:01:19.8]} 38. Rh6
{[%clk 0:00:04.7]} 38... Qxc3 {[%clk 0:01:07.7]} 39. Rhxh7 {[%clk 0:00:05.3]}
39... d5 {[%clk 0:00:59.7]} 40. Rhf7+ {[%clk 0:00:05.7]} 40... Kg6 {[%clk
0:00:59.7]} 41. Rg7+ {[%clk 0:00:06.3]} 41... Qxg7 {[%clk 0:00:44.7]} 42. Rxg7+
{[%clk 0:00:07.2]} 42... Kxg7 {[%clk 0:00:45.6]} 43. Kf1 {[%clk 0:00:07]} 43...
f3 {[%clk 0:00:32.4]} 44. gxf3 {[%clk 0:00:06.4]} 44... Kf6 {[%clk 0:00:32.6]}
45. Ke2 {[%clk 0:00:06.6]} 45... Kf5 {[%clk 0:00:31.5]} 46. Kd3 {[%clk 0:00:06]}
46... Kf4 {[%clk 0:00:30.2]} 47. b4 {[%clk 0:00:03.9]} 47... cxb4 {[%clk
0:00:28]} 48. Kd4 {[%clk 0:00:03.7]} 48... Kxf3 {[%clk 0:00:26.7]} 49. Kxd5
{[%clk 0:00:02.4]} 49... Kxf2 {[%clk 0:00:26]} 50. Kc4 {[%clk 0:00:02.4]} 50...
Kg3 {[%clk 0:00:24.7]} 51. Kxb4 {[%clk 0:00:03]} 51... Kxh3 {[%clk 0:00:25.2]}
52. Ka5 {[%clk 0:00:03.9]} 52... g4 {[%clk 0:00:25.6]} 53. Kxa6 {[%clk
0:00:04.8]} 53... g3 {[%clk 0:00:26.2]} 54. Kb6 {[%clk 0:00:05.7]} 54... g2
{[%clk 0:00:26.8]} 55. a4 {[%clk 0:00:06.6]} 55... g1=Q+ {[%clk 0:00:27]} 0-1

[Event "Early-Titled-Tuesday-Blitz-October-24-2023"]
[Site "Chess.com"]
[Date "2023.10.24"]
[Round "4"]
[White "deribas12345"]
[Black "AvitalBor"]
[Result "0-1"]
[WhiteElo "2564"]
[BlackElo "2845"]
[TimeControl "180+1"]
[EndTime "8:38:14 PDT"]
[Termination "AvitalBor won by resignation"]

1. d4 {[%clk 0:03:00.9]} 1... Nf6 {[%clk 0:02:59.2]} 2. c4 {[%clk 0:03:00.8]}
2... e6 {[%clk 0:02:59]} 3. Nc3 {[%clk 0:03:00.9]} 3... Bb4 {[%clk 0:02:59]} 4.
a3 {[%clk 0:03:01.3]} 4... Bxc3+ {[%clk 0:02:58.8]} 5. bxc3 {[%clk 0:03:02.2]}
5... O-O {[%clk 0:02:58.2]} 6. f3 {[%clk 0:03:02.7]} 6... d5 {[%clk 0:02:58.6]}
7. e3 {[%clk 0:03:02]} 7... b6 {[%clk 0:02:57.9]} 8. cxd5 {[%clk 0:03:01.8]}
8... exd5 {[%clk 0:02:58.8]} 9. Ra2 {[%clk 0:03:00.5]} 9... c5 {[%clk
0:02:57.7]} 10. Bd3 {[%clk 0:02:59.2]} 10... Ba6 {[%clk 0:02:38.5]} 11. Bxa6
{[%clk 0:02:57.6]} 11... Nxa6 {[%clk 0:02:39.4]} 12. Ne2 {[%clk 0:02:57.9]}
12... Re8 {[%clk 0:02:39.1]} 13. O-O {[%clk 0:02:55.6]} 13... Nc7 {[%clk
0:02:37.2]} 14. g4 {[%clk 0:02:52.4]} 14... Qc8 {[%clk 0:02:21.6]} 15. Ng3
{[%clk 0:02:46.5]} 15... Ne6 {[%clk 0:02:14.3]} 16. Nf5 {[%clk 0:02:40]} 16...
Qa6 {[%clk 0:02:12.6]} 17. g5 {[%clk 0:02:32.8]} 17... Nxg5 {[%clk 0:02:07.6]}
18. Rg2 {[%clk 0:02:27.5]} 18... Ne6 {[%clk 0:02:06.1]} 19. e4 {[%clk
0:02:18.7]} 19... Kh8 {[%clk 0:02:01.1]} 20. Nd6 {[%clk 0:01:51.3]} 20... Rf8
{[%clk 0:01:58.8]} 21. e5 {[%clk 0:01:50.5]} 21... Ne8 {[%clk 0:01:53.7]} 22.
Nf5 {[%clk 0:01:28.4]} 22... cxd4 {[%clk 0:01:53.8]} 23. cxd4 {[%clk 0:01:28.2]}
23... f6 {[%clk 0:01:44.9]} 24. f4 {[%clk 0:00:47.7]} 24... g6 {[%clk
0:01:33.2]} 25. Nh4 {[%clk 0:00:41.8]} 25... f5 {[%clk 0:01:08.9]} 26. Qb3
{[%clk 0:00:28.5]} 26... N8g7 {[%clk 0:00:53.7]} 27. Rxg6 {[%clk 0:00:15.5]}
27... hxg6 {[%clk 0:00:45.7]} 28. Nxg6+ {[%clk 0:00:15.6]} 28... Kg8 {[%clk
0:00:45.9]} 29. Ne7+ {[%clk 0:00:15.3]} 29... Kf7 {[%clk 0:00:44.3]} 30. Nxd5
{[%clk 0:00:15]} 30... Rac8 {[%clk 0:00:38]} 31. Nf6 {[%clk 0:00:11.1]} 31...
Qc4 {[%clk 0:00:36.1]} 32. Qxc4 {[%clk 0:00:09.8]} 32... Rxc4 {[%clk 0:00:37]}
33. d5 {[%clk 0:00:10.7]} 33... Nd4 {[%clk 0:00:35.4]} 34. Bb2 {[%clk
0:00:10.1]} 34... Ne2+ {[%clk 0:00:31]} 35. Kf2 {[%clk 0:00:09.3]} 35... Rc2
{[%clk 0:00:31.1]} 36. e6+ {[%clk 0:00:06.5]} 36... Nxe6 {[%clk 0:00:28.8]} 37.
dxe6+ {[%clk 0:00:06.9]} 37... Kxe6 {[%clk 0:00:29.4]} 38. Nh7 {[%clk
0:00:04.6]} 38... Rg8 {[%clk 0:00:25.2]} 39. Ng5+ {[%clk 0:00:02.2]} 39... Rxg5
{[%clk 0:00:25.3]} 40. fxg5 {[%clk 0:00:03.1]} 40... Nc3+ {[%clk 0:00:14]} 41.
Ke3 {[%clk 0:00:01.6]} 41... Rxb2 {[%clk 0:00:14.9]} 42. Kd4 {[%clk 0:00:01.9]}
42... Nb5+ {[%clk 0:00:13.2]} 43. Kc4 {[%clk 0:00:02.1]} 43... Nxa3+ {[%clk
0:00:13.3]} 44. Kc3 {[%clk 0:00:02.1]} 44... Rxh2 {[%clk 0:00:13.9]} 45. Re1+
{[%clk 0:00:02.3]} 45... Kf7 {[%clk 0:00:14.1]} 46. Kb4 {[%clk 0:00:02.2]} 46...
Nc2+ {[%clk 0:00:13.8]} 0-1